fUSD/lending_fUSD_20250101
["ID","MTS","AMOUNT","RATE_DAILY","PERIOD"]
[347386024,1735755011667,-1586.84,0.00010958,2]
[347386025,1735755011689,-500.0,0.00010958,2]
[347386026,1735755011719,-500.0,0.00010958,2]
[347386027,1735755011740,-500.0,0.00010958,2]
[347386028,1735755011761,-500.0,0.00010958,2]
[347386029,1735755011783,-623.29,0.00010958,2]
[347386030,1735755011804,-500.0,0.00010958,2]
[347386031,1735755011825,-595.79,0.00010958,2]
[347386032,1735755011848,-500.0,0.00010958,2]
[347386033,1735755011869,-500.0,0.00010958,2]
[347386034,1735755011890,-522.73,0.00010958,2]
[347386035,1735755011913,-500.0,0.00010958,2]
[347386036,1735755011935,-500.0,0.00010958,2]
[347386037,1735755011957,-532.76,0.00010958,2]
[347386038,1735755011980,-500.0,0.00010958,2]
[347386039,1735755012003,-518.16,0.00010958,2]
[347386040,1735755012025,-500.0,0.00010958,2]
[347386041,1735755012046,-500.0,0.00010958,2]
[347386042,1735755012067,-500.0,0.00010958,2]
[347386043,1735755012105,-2306.39,0.00010958,2]
[347386044,1735755012126,-569.64,0.00010958,2]
[347386045,1735755012170,-500.0,0.00010958,2]
[347386046,1735755012195,-500.0,0.00010958,2]
[347386047,1735755012220,-1837.65,0.00010958,2]
[347386048,1735755012242,-500.0,0.00010958,2]
[347386049,1735755012284,-500.0,0.00010958,2]
[347386050,1735755012307,-500.0,0.00010958,2]
[347386051,1735755012329,-1244.21,0.00010958,2]
[347386052,1735755012354,-500.0,0.00010958,2]
[347386053,1735755012375,-500.0,0.00010958,2]
[347386054,1735755012411,-500.0,0.00010958,2]
[347386055,1735755012433,-1578.17,0.00010958,2]
[347386056,1735755012453,-500.0,0.00010958,2]
[347386057,1735755012475,-1985.34,0.00010958,2]
[347386058,1735755012496,-738.96,0.00010958,2]
[347386059,1735755012517,-638.08,0.00010958,2]
[347386060,1735755012539,-500.0,0.00010958,2]
[347386061,1735755012562,-659.91,0.00010958,2]
[347386062,1735755012583,-670.23,0.00010958,2]
[347386063,1735755012605,-500.0,0.00010958,2]
[347386064,1735755012855,-1112.82,0.00010958,2]
[347386065,1735755012878,-500.0,0.00010958,2]
[347386066,1735755012900,-500.0,0.00010958,2]
[347386067,1735755012923,-500.0,0.00010958,2]
[347386068,1735755012945,-500.0,0.00010958,2]
[347386069,1735755012966,-924.12,0.00010958,2]
[347386070,1735755012988,-4062.65,0.00010958,2]
[347386071,1735755013010,-500.0,0.00010958,2]
[347386072,1735755013031,-500.0,0.00010958,2]
[347386073,1735755013051,-500.0,0.00010958,2]
[347386074,1735755013073,-500.0,0.00010958,2]
[347386075,1735755013094,-596.44,0.00010958,2]
[347386076,1735755013115,-500.0,0.00010958,2]
[347386077,1735755013135,-733.78,0.00010958,2]
[347386078,1735755013157,-885.67,0.00010958,2]
[347386079,1735755013179,-500.17344374,0.00010958,2]
[347386080,1735755013200,-3843.06,0.00010958,2]
[347386081,1735755013223,-690.59,0.00010958,2]
[347386082,1735755013244,-500.0,0.00010958,2]
[347386083,1735755013267,-522.93,0.00010958,2]
[347386084,1735755013288,-192.68880217,0.00010958,2]
[347386085,1735755013309,-1009.33,0.00010958,2]
[347386086,1735755013331,-500.0,0.00010958,2]
[347386087,1735755013353,-1292.95,0.00010958,2]
[347386088,1735755013375,-1614.9,0.00010958,2]
[347386089,1735755013396,-1635.38,0.00010958,2]
[347386090,1735755013418,-500.0,0.00010958,2]
[347386091,1735755013446,-1556.11,0.00010958,2]
[347386092,1735755013471,-500.0,0.00010958,2]
[347386093,1735755013495,-2229.88,0.00010958,2]
[347386094,1735755013518,-1614.44,0.00010958,2]
[347386095,1735755013541,-1187.19,0.00010958,2]
[347386096,1735755013568,-500.0,0.00010958,2]
[347386097,1735755013591,-500.0,0.00010958,2]
[347386098,1735755013614,-2534.24,0.00010958,2]
[347386099,1735755013639,-500.0,0.00010958,2]
[347386100,1735755013664,-765.41,0.00010958,2]
[347386101,1735755013687,-946.6,0.00010958,2]
[347386102,1735755013709,-500.0,0.00010958,2]
[347386103,1735755013731,-568.71,0.00010958,2]
[347386104,1735755013752,-4081.84,0.00010958,2]
[347386105,1735755013775,-1519.43,0.00010958,2]
[347386106,1735755013797,-800.56,0.00010958,2]
[347386107,1735755013819,-500.0,0.00010958,2]
[347386108,1735755013841,-883.95,0.00010958,2]
[347386109,1735755013865,-500.0,0.00010958,2]
[347386110,1735755013887,-1854.97,0.00010958,2]
[347386111,1735755013912,-1902.95,0.00010958,2]
[347386112,1735755013943,-567.59924121,0.00010958,2]
[347386113,1735755013970,-500.0,0.00010958,2]
[347386114,1735755013998,-500.0,0.00010958,2]
[347386115,1735755014024,-500.0,0.00010958,2]
[347386116,1735755014061,-500.0,0.00010958,2]
[347386117,1735755014087,-500.0,0.00010958,2]
[347386118,1735755014120,-500.0,0.00010958,2]
[347386119,1735755014148,-500.0,0.00010958,2]
[347386120,1735755014175,-15455.46,0.00010958,2]
[347386121,1735755014199,-500.0,0.00010958,2]
[347386122,1735755014226,-1519.02,0.00010958,2]
[347386123,1735755014251,-876.24,0.00010958,2]
[347386124,1735755014275,-2347.02,0.00010958,2]
[347386125,1735755014298,-500.0,0.00010958,2]
[347386126,1735755014322,-534.64,0.00010958,2]
[347386127,1735755014344,-645.17,0.00010958,2]
[347386128,1735755014367,-540.57,0.00010958,2]
[347386129,1735755014391,-927.63,0.00010958,2]
[347386130,1735755014415,-500.0,0.00010958,2]
[347386131,1735755014440,-500.0,0.00010958,2]
[347386132,1735755014463,-500.0,0.00010958,2]
[347386133,1735755014485,-1715.02,0.00010958,2]
[347386134,1735755014507,-1346.28,0.00010958,2]
[347386135,1735755014529,-1653.53,0.00010958,2]
[347386136,1735755014554,-500.0,0.00010958,2]
[347386137,1735755014577,-783.28,0.00010958,2]
[347386138,1735755014608,-157.00503,0.00010958,2]
[347386139,1735755014640,-502.41064141,0.00010958,2]
[347386140,1735755014663,-1070.28,0.00010958,2]
[347386141,1735755014685,-500.0,0.00010958,2]
[347386142,1735755014707,-500.0,0.00010958,2]
[347386143,1735755014729,-2911.3,0.00010958,2]
[347386144,1735755014752,-865.72,0.00010958,2]
[347386145,1735755014774,-1708.41,0.00010958,2]
[347386146,1735755014795,-500.0,0.00010958,2]
[347386147,1735755014818,-500.0,0.00010958,2]
[347386148,1735755014839,-847.52,0.00010958,2]
[347386149,1735755014861,-500.0,0.00010958,2]
[347386150,1735755014882,-2135.37,0.00010958,2]
[347386151,1735755014906,-500.0,0.00010958,2]
[347386152,1735755014928,-500.0,0.00010958,2]
[347386153,1735755014949,-500.0,0.00010958,2]
[347386154,1735755014971,-500.0,0.00010958,2]
[347386155,1735755014994,-500.0,0.00010958,2]
[347386156,1735755015017,-845.68,0.00010958,2]
[347386157,1735755015039,-500.0,0.00010958,2]
[347386158,1735755015061,-500.0,0.00010958,2]
[347386159,1735755015083,-500.0,0.00010958,2]
[347386160,1735755015105,-500.0,0.00010958,2]
[347386161,1735755015128,-500.0,0.00010958,2]
[347386162,1735755015151,-500.0,0.00010958,2]
[347386163,1735755015174,-500.0,0.00010958,2]
[347386164,1735755015195,-500.0,0.00010958,2]
[347386165,1735755015218,-452.84,0.00010958,2]
[347386166,1735755015240,-500.0,0.00010958,2]
[347386167,1735755015263,-500.0,0.00010958,2]
[347386168,1735755015285,-500.0,0.00010958,2]
[347386169,1735755015307,-2256.58,0.00010958,2]
[347386170,1735755015329,-2993.31,0.00010958,2]
[347386171,1735755015351,-949.43,0.00010958,2]
[347386172,1735755015372,-3184.43,0.00010958,2]
[347386173,1735755015403,-500.0,0.00010958,2]
[347386174,1735755015436,-500.0,0.00010958,2]
[347386175,1735755015461,-1219.77,0.00010958,2]
[347386176,1735755015484,-500.0,0.00010958,2]
[347386177,1735755015507,-794.88,0.00010958,2]
[347386178,1735755015529,-500.0,0.00010958,2]
[347386179,1735755015555,-500.0,0.00010958,2]
[347386180,1735755015579,-2330.14,0.00010958,2]
[347386181,1735755015602,-717.71,0.00010958,2]
[347386182,1735755015625,-500.0,0.00010958,2]
[347386183,1735755015648,-866.26,0.00010958,2]
[347386184,1735755015671,-500.0,0.00010958,2]
[347386185,1735755015697,-500.0,0.00010958,2]
[347386186,1735755015719,-551.21,0.00010958,2]
[347386187,1735755015742,-500.0,0.00010958,2]
[347386188,1735755015769,-500.0,0.00010958,2]
[347386189,1735755015797,-500.0,0.00010958,2]
[347386190,1735755015823,-500.0,0.00010958,2]
[347386191,1735755015846,-500.0,0.00010958,2]
[347386192,1735755015869,-153.06639363,0.00010958,2]
[347386193,1735755015892,-701.02,0.00010958,2]
[347386194,1735755015917,-500.0,0.00010958,2]
[347386195,1735755015940,-500.0,0.00010958,2]
[347386196,1735755015963,-500.0,0.00010958,2]
[347386197,1735755015985,-500.0,0.00010958,2]
[347386198,1735755016008,-157.71018865,0.00010958,2]
[347386199,1735755016031,-889.19,0.00010958,2]
[347386200,1735755016054,-979.37,0.00010958,2]
[347386201,1735755016077,-500.0,0.00010958,2]
[347386202,1735755016099,-500.0,0.00010958,2]
[347386203,1735755016123,-500.0,0.00010958,2]
[347386204,1735755016146,-1221.35,0.00010958,2]
[347386205,1735755016170,-2526.78,0.00010958,2]
[347386206,1735755016193,-500.0,0.00010958,2]
[347386207,1735755016217,-2098.52,0.00010958,2]
[347386208,1735755016241,-500.0,0.00010958,2]
[347386209,1735755016263,-500.0,0.00010958,2]
[347386210,1735755016286,-500.0,0.00010958,2]
[347386211,1735755016309,-1165.53,0.00010958,2]
[347386212,1735755016331,-3062.52,0.00010958,2]
[347386213,1735755016354,-500.0,0.00010958,2]
[347386214,1735755016378,-500.0,0.00010958,2]
[347386215,1735755016401,-500.0,0.00010958,2]
[347386216,1735755016651,-500.0,0.00010958,2]
[347386217,1735755016677,-500.0,0.00010958,2]
[347386218,1735755016700,-500.0,0.00010958,2]
[347386219,1735755016724,-500.0,0.00010958,2]
[347386220,1735755016748,-500.0,0.00010958,2]
[347386221,1735755016771,-500.0,0.00010958,2]
[347386222,1735755016794,-1845.57,0.00010958,2]
[347386223,1735755016819,-500.0,0.00010958,2]
[347386224,1735755016842,-500.0,0.00010958,2]
[347386225,1735755016864,-617.74,0.00010958,2]
[347386226,1735755016886,-2101.82,0.00010958,2]
[347386227,1735755016910,-723.77,0.00010958,2]
[347386228,1735755016934,-834.13,0.00010958,2]
[347386229,1735755016957,-500.0,0.00010958,2]
[347386230,1735755016980,-500.0,0.00010958,2]
[347386231,1735755017003,-1867.15,0.00010958,2]
[347386232,1735755017026,-500.0,0.00010958,2]
[347386233,1735755017048,-500.0,0.00010958,2]
[347386234,1735755017070,-650.38,0.00010958,2]
[347386235,1735755017094,-558.27,0.00010958,2]
[347386236,1735755017117,-768.03,0.00010958,2]
[347386237,1735755017141,-500.0,0.00010958,2]
[347386238,1735755017165,-500.0,0.00010958,2]
[347386239,1735755017188,-586.27,0.00010958,2]
[347386240,1735755017210,-500.0,0.00010958,2]
[347386241,1735755017232,-500.0,0.00010958,2]
[347386242,1735755017254,-807.18,0.00010958,2]
[347386243,1735755017276,-500.0,0.00010958,2]
[347386244,1735755017297,-1984.37,0.00010958,2]
[347386245,1735755017319,-1801.58,0.00010958,2]
[347386246,1735755017340,-697.48,0.00010958,2]
[347386247,1735755017362,-936.97,0.00010958,2]
[347386248,1735755017385,-500.0,0.00010958,2]
[347386249,1735755017406,-500.0,0.00010958,2]
[347386250,1735755017427,-1311.43,0.00010958,2]
[347386251,1735755017449,-1985.2,0.00010958,2]
[347386252,1735755017472,-500.0,0.00010958,2]
[347386253,1735755017494,-500.0,0.00010958,2]
[347386254,1735755017517,-895.3,0.00010958,2]
[347386255,1735755017539,-500.0,0.00010958,2]
[347386256,1735755017564,-500.0,0.00010958,2]
[347386257,1735755017585,-500.0,0.00010958,2]
[347386258,1735755017607,-184.46943378,0.00010958,2]
[347386259,1735755017629,-627.48,0.00010958,2]
[347386260,1735755017651,-1122.6,0.00010958,2]
[347386261,1735755017675,-4881.17,0.00010958,2]
[347386262,1735755017697,-500.0,0.00010958,2]
[347386263,1735755017719,-1883.52,0.00010958,2]
[347386264,1735755017741,-500.0,0.00010958,2]
[347386265,1735755017764,-500.0,0.00010958,2]
[347386266,1735755017786,-1462.48,0.00010958,2]
[347386267,1735755017808,-500.0,0.00010958,2]
[347386268,1735755017831,-500.0,0.00010958,2]
[347386269,1735755017853,-690.79,0.00010958,2]
[347386270,1735755017877,-671.85,0.00010958,2]
[347386271,1735755017900,-500.0,0.00010958,2]
[347386272,1735755017923,-500.0,0.00010958,2]
[347386273,1735755017947,-1335.17,0.00010958,2]
[347386274,1735755017969,-936.05,0.00010958,2]
[347386275,1735755017992,-591.06,0.00010958,2]
[347386276,1735755018016,-966.95,0.00010958,2]
[347386277,1735755018040,-1322.4,0.00010958,2]
[347386278,1735755018064,-993.67,0.00010958,2]
[347386279,1735755018087,-500.0,0.00010958,2]
[347386280,1735755018110,-1906.4,0.00010958,2]
[347386281,1735755018135,-1063.37,0.00010958,2]
[347386282,1735755018160,-536.96,0.00010958,2]
[347386283,1735755018184,-500.0,0.00010958,2]
[347386284,1735755018208,-500.0,0.00010958,2]
[347386285,1735755018231,-500.0,0.00010958,2]
[347386286,1735755018254,-500.0,0.00010958,2]
[347386287,1735755018277,-706.17,0.00010958,2]
[347386288,1735755018301,-589.22,0.00010958,2]
[347386289,1735755018323,-500.0,0.00010958,2]
[347386290,1735755018347,-797.76,0.00010958,2]
[347386291,1735755018370,-1397.4,0.00010958,2]
[347386292,1735755018393,-500.0,0.00010958,2]
[347386293,1735755018417,-898.74,0.00010958,2]
[347386294,1735755018442,-1902.14,0.00010958,2]
[347386295,1735755018465,-500.0,0.00010958,2]
[347386296,1735755018487,-500.0,0.00010958,2]
[347386297,1735755018510,-292.7406841,0.00010958,2]
[347386298,1735755018533,-584.43,0.00010958,2]
[347386299,1735755018558,-500.0,0.00010958,2]
[347386300,1735755018581,-500.0,0.00010958,2]
[347386301,1735755018606,-2862.53,0.00010958,2]
[347386302,1735755018628,-1732.16,0.00010958,2]
[347386303,1735755018655,-730.01,0.00010958,2]
[347386304,1735755018679,-500.0,0.00010958,2]
[347386305,1735755018702,-4151.32,0.00010958,2]
[347386306,1735755018725,-500.0,0.00010958,2]
[347386307,1735755018747,-4044.0,0.00010958,2]
[347386308,1735755018771,-500.0,0.00010958,2]
[347386309,1735755018795,-500.0,0.00010958,2]
[347386310,1735755018818,-1851.45,0.00010958,2]
[347386311,1735755018840,-962.82,0.00010958,2]
[347386312,1735755018862,-500.0,0.00010958,2]
[347386313,1735755018885,-500.0,0.00010958,2]
[347386314,1735755018911,-3021.71,0.00010958,2]
[347386315,1735755018934,-1450.99,0.00010958,2]
[347386316,1735755018957,-500.0,0.00010958,2]
[347386317,1735755018980,-500.0,0.00010958,2]
[347386318,1735755019003,-500.0,0.00010958,2]
[347386319,1735755019027,-1701.92,0.00010958,2]
[347386320,1735755019049,-500.25092334,0.00010958,2]
[347386321,1735755019073,-500.0,0.00010958,2]
[347386322,1735755019097,-500.0,0.00010958,2]
[347386323,1735755019121,-500.0,0.00010958,2]
[347386324,1735755019145,-1211.35,0.00010958,2]
[347386325,1735755019172,-500.0,0.00010958,2]
[347386326,1735755019197,-500.0,0.00010958,2]
[347386327,1735755019223,-500.0,0.00010958,2]
[347386328,1735755019247,-1271.35,0.00010958,2]
[347386329,1735755019271,-500.0,0.00010958,2]
[347386330,1735755019294,-1366.48,0.00010958,2]
[347386331,1735755019317,-500.0,0.00010958,2]
[347386332,1735755019339,-573.68,0.00010958,2]
[347386333,1735755019362,-500.0,0.00010958,2]
[347386334,1735755019385,-500.0,0.00010958,2]
[347386335,1735755019411,-500.0,0.00010958,2]
[347386336,1735755019434,-500.0,0.00010958,2]
[347386337,1735755019458,-3428.34,0.00010958,2]
[347386338,1735755019481,-666.96,0.00010958,2]
[347386339,1735755019504,-500.0,0.00010958,2]
[347386340,1735755019527,-500.0,0.00010958,2]
[347386341,1735755019552,-1252.18,0.00010958,2]
[347386342,1735755019582,-500.0,0.00010958,2]
[347386343,1735755019604,-500.0,0.00010958,2]
[347386344,1735755019627,-1434.07,0.00010958,2]
[347386345,1735755019651,-500.0,0.00010958,2]
[347386346,1735755019673,-500.0,0.00010958,2]
[347386347,1735755019696,-4774.62,0.00010958,2]
[347386348,1735755019718,-1186.65,0.00010958,2]
[347386349,1735755019740,-500.0,0.00010958,2]
[347386350,1735755019762,-500.0,0.00010958,2]
[347386351,1735755019784,-2132.923983,0.00010958,2]
[347386352,1735755019806,-500.0,0.00010958,2]
[347386353,1735755019828,-4459.94,0.00010958,2]
[347386354,1735755019850,-500.0,0.00010958,2]
[347386355,1735755019872,-2400.62,0.00010958,2]
[347386356,1735755019895,-812.45,0.00010958,2]
[347386357,1735755019920,-500.0,0.00010958,2]
[347386358,1735755019943,-776.28,0.00010958,2]
[347386359,1735755019965,-889.58,0.00010958,2]
[347386360,1735755019988,-500.0,0.00010958,2]
[347386361,1735755020010,-155.490194,0.00010958,2]
[347386362,1735755020033,-1095.12,0.00010958,2]
[347386363,1735755020057,-150.0,0.00010958,2]
[347386364,1735755020080,-500.0,0.00010958,2]
[347386365,1735755020102,-500.0,0.00010958,2]
[347386366,1735755020124,-500.0,0.00010958,2]
[347386367,1735755020147,-155.733661,0.00010958,2]
[347386368,1735755020171,-500.0,0.00010958,2]
[347386369,1735755020430,-500.0,0.00010958,2]
[347386370,1735755020454,-1126.2,0.00010958,2]
[347386371,1735755020479,-500.0,0.00010958,2]
[347386372,1735755020502,-631.8,0.00010958,2]
[347386373,1735755020525,-500.0,0.00010958,2]
[347386374,1735755020549,-500.0,0.00010958,2]
[347386375,1735755020575,-500.0,0.00010958,2]
[347386376,1735755020598,-500.0,0.00010958,2]
[347386377,1735755020624,-1799.02,0.00010958,2]
[347386378,1735755020651,-500.0,0.00010958,2]
[347386379,1735755020675,-1649.64,0.00010958,2]
[347386380,1735755020699,-2393.73,0.00010958,2]
[347386381,1735755020723,-11697.6,0.00010958,2]
[347386382,1735755020746,-500.0,0.00010958,2]
[347386383,1735755020769,-1887.92,0.00010958,2]
[347386384,1735755020793,-500.0,0.00010958,2]
[347386385,1735755020817,-500.0,0.00010958,2]
[347386386,1735755020840,-747.05,0.00010958,2]
[347386387,1735755020863,-500.0,0.00010958,2]
[347386388,1735755020885,-500.0,0.00010958,2]
[347386389,1735755020909,-1617.15,0.00010958,2]
[347386390,1735755020932,-500.0,0.00010958,2]
[347386391,1735755020954,-1204.67,0.00010958,2]
[347386392,1735755020977,-1676.84,0.00010958,2]
[347386393,1735755021000,-500.0,0.00010958,2]
[347386394,1735755021024,-500.0,0.00010958,2]
[347386395,1735755021048,-500.0,0.00010958,2]
[347386396,1735755021071,-1738.55,0.00010958,2]
[347386397,1735755021094,-500.0,0.00010958,2]
[347386398,1735755021116,-500.0,0.00010958,2]
[347386399,1735755021140,-1906.93,0.00010958,2]
[347386400,1735755021164,-340.65300167,0.00010958,2]
[347386401,1735755021188,-1070.04,0.00010958,2]
[347386402,1735755021210,-500.0,0.00010958,2]
[347386403,1735755021235,-500.0,0.00010958,2]
[347386404,1735755021259,-500.0,0.00010958,2]
[347386405,1735755021281,-1283.2,0.00010958,2]
[347386406,1735755021304,-602.42,0.00010958,2]
[347386407,1735755021326,-517.67399898,0.00010958,2]
[347386408,1735755021348,-687.63,0.00010958,2]
[347386409,1735755021369,-583.32,0.00010958,2]
[347386410,1735755021391,-552.88,0.00010958,2]
[347386411,1735755021414,-500.0,0.00010958,2]
[347386412,1735755021437,-3339.58,0.00010958,2]
[347386413,1735755021460,-1436.6,0.00010958,2]
[347386414,1735755021482,-500.0,0.00010958,2]
[347386415,1735755021505,-751.51,0.00010958,2]
[347386416,1735755021528,-1819.24,0.00010958,2]
[347386417,1735755021553,-1077.01,0.00010958,2]
[347386418,1735755021579,-782.03,0.00010958,2]
[347386419,1735755021602,-1304.13,0.00010958,2]
[347386420,1735755021624,-247.566683,0.00010958,2]
[347386421,1735755021650,-627.2,0.00010958,2]
[347386422,1735755021674,-500.0,0.00010958,2]
[347386423,1735755021697,-612.69,0.00010958,2]
[347386424,1735755021721,-500.0,0.00010958,2]
[347386425,1735755021744,-582.31,0.00010958,2]
[347386426,1735755021768,-500.0,0.00010958,2]
[347386427,1735755021790,-500.0,0.00010958,2]
[347386428,1735755021812,-657.24,0.00010958,2]
[347386429,1735755021835,-500.0,0.00010958,2]
[347386430,1735755021858,-500.0,0.00010958,2]
[347386431,1735755021882,-809.6,0.00010958,2]
[347386432,1735755021905,-635.35,0.00010958,2]
[347386433,1735755021929,-644.52,0.00010958,2]
[347386434,1735755021953,-1107.62,0.00010958,2]
[347386435,1735755021976,-540.72,0.00010958,2]
[347386436,1735755021998,-500.0,0.00010958,2]
[347386437,1735755022020,-1647.3,0.00010958,2]
[347386438,1735755022043,-500.0,0.00010958,2]
[347386439,1735755022066,-500.0,0.00010958,2]
[347386440,1735755022089,-2154.29,0.00010958,2]
[347386441,1735755022113,-500.0,0.00010958,2]
[347386442,1735755022136,-1107.85,0.00010958,2]
[347386443,1735755022158,-910.2,0.00010958,2]
[347386444,1735755022182,-500.0,0.00010958,2]
[347386445,1735755022205,-500.0,0.00010958,2]
[347386446,1735755022227,-500.0,0.00010958,2]
[347386447,1735755022250,-3561.63,0.00010958,2]
[347386448,1735755022274,-721.6,0.00010958,2]
[347386449,1735755022297,-2407.77,0.00010958,2]
[347386450,1735755022320,-1283.71,0.00010958,2]
[347386451,1735755022343,-910.01,0.00010958,2]
[347386452,1735755022366,-500.0,0.00010958,2]
[347386453,1735755022389,-662.71,0.00010958,2]
[347386454,1735755022414,-2102.58,0.00010958,2]
[347386455,1735755022437,-607.94,0.00010958,2]
[347386456,1735755022462,-13606.75,0.00010958,2]
[347386457,1735755022485,-523.26,0.00010958,2]
[347386458,1735755022509,-500.0,0.00010958,2]
[347386459,1735755022532,-500.0,0.00010958,2]
[347386460,1735755022555,-778.85,0.00010958,2]
[347386461,1735755022579,-500.0,0.00010958,2]
[347386462,1735755022602,-536.56,0.00010958,2]
[347386463,1735755022625,-569.77,0.00010958,2]
[347386464,1735755022652,-1303.47,0.00010958,2]
[347386465,1735755022676,-500.0,0.00010958,2]
[347386466,1735755022699,-548.66,0.00010958,2]
[347386467,1735755022723,-500.0,0.00010958,2]
[347386468,1735755022747,-500.0,0.00010958,2]
[347386469,1735755022770,-1340.62,0.00010958,2]
[347386470,1735755022795,-500.0,0.00010958,2]
[347386471,1735755022817,-500.0,0.00010958,2]
[347386472,1735755022840,-500.0,0.00010958,2]
[347386473,1735755022863,-1798.12,0.00010958,2]
[347386474,1735755022887,-1891.43,0.00010958,2]
[347386475,1735755022911,-606.63,0.00010958,2]
[347386476,1735755022939,-500.0,0.00010958,2]
[347386477,1735755022962,-726.62,0.00010958,2]
[347386478,1735755022987,-1176.9,0.00010958,2]
[347386479,1735755023011,-500.0,0.00010958,2]
[347386480,1735755023034,-3192.82,0.00010958,2]
[347386481,1735755023057,-500.0,0.00010958,2]
[347386482,1735755023080,-727.24,0.00010958,2]
[347386483,1735755023105,-500.0,0.00010958,2]
[347386484,1735755023128,-500.0,0.00010958,2]
[347386485,1735755023150,-2299.67,0.00010958,2]
[347386486,1735755023174,-1003.78,0.00010958,2]
[347386487,1735755023196,-1350.25,0.00010958,2]
[347386488,1735755023220,-500.0,0.00010958,2]
[347386489,1735755023242,-500.0,0.00010958,2]
[347386490,1735755023265,-500.0,0.00010958,2]
[347386491,1735755023288,-7438.08,0.00010958,2]
[347386492,1735755023310,-500.0,0.00010958,2]
[347386493,1735755023333,-500.0,0.00010958,2]
[347386494,1735755023357,-500.0,0.00010958,2]
[347386495,1735755023383,-500.0,0.00010958,2]
[347386496,1735755023407,-500.0,0.00010958,2]
[347386497,1735755023431,-1945.26,0.00010958,2]
[347386498,1735755023454,-8883.86,0.00010958,2]
[347386499,1735755023477,-612.38,0.00010958,2]
[347386500,1735755023500,-500.0,0.00010958,2]
[347386501,1735755023524,-8639.4,0.00010958,2]
[347386502,1735755023548,-500.0,0.00010958,2]
[347386503,1735755023573,-2126.39,0.00010958,2]
[347386504,1735755023597,-702.47,0.00010958,2]
[347386505,1735755023621,-612.87,0.00010958,2]
[347386506,1735755023646,-191.80746674,0.00010958,2]
[347386507,1735755023670,-1357.3,0.00010958,2]
[347386508,1735755023692,-500.0,0.00010958,2]
[347386509,1735755023715,-878.85,0.00010958,2]
[347386510,1735755023737,-500.0,0.00010958,2]
[347386511,1735755023760,-500.0,0.00010958,2]
[347386512,1735755023782,-858.3,0.00010958,2]
[347386513,1735755023805,-500.0,0.00010958,2]
[347386514,1735755023828,-841.37,0.00010958,2]
[347386515,1735755023852,-500.0,0.00010958,2]
[347386516,1735755023875,-1249.96,0.00010958,2]
[347386517,1735755023897,-500.0,0.00010958,2]
[347386518,1735755023924,-1132.71,0.00010958,2]
[347386519,1735755023946,-500.0,0.00010958,2]
[347386520,1735755023969,-1393.3,0.00010958,2]
[347386521,1735755023992,-560.69,0.00010958,2]
[347386522,1735755024240,-500.0,0.00010958,2]
[347386523,1735755024265,-500.0,0.00010958,2]